bitfinex-derivatives/quotes_ETHF0:USTF0_20220106
["timestamp","ask_amount","ask_price","bid_price","bid_amount"]
[1641440021268,4.11303094,3487.5,3487.4,3.0]
[1641440021468,5.3588165,3487.5,3487.4,3.229991]
[1641440022070,5.3588165,3487.5,3487.4,3.0]
[1641440022470,5.3588165,3487.5,3487.4,3.229991]
[1641440022673,5.3588165,3487.5,3487.4,3.0]
[1641440023471,3.54191625,3487.5,3487.4,3.0]
[1641440023671,2.10824094,3487.5,3487.4,3.0]
[1641440023872,3.54196764,3487.5,3487.4,3.0]
[1641440024270,3.54196764,3487.5,3486.7,2.00479]
[1641440024470,1.5,3486.9,3486.7,2.00479]
[1641440026074,0.60824094,3486.8,3486.7,2.00479]
[1641440026272,1.86066518,3486.8,3486.7,2.00479]
[1641440026473,1.86066518,3486.8,3486.6,1.21903455]
[1641440027274,1.5,3486.7,3486.6,1.21903455]
[1641440027776,1.86066518,3486.8,3486.6,1.21903455]
[1641440028374,1.5,3486.7,3486.6,1.21903455]
[1641440028578,1.25242424,3486.8,3486.6,1.21903455]
[1641440028774,0.60824094,3486.9,3486.6,1.21903455]
[1641440029774,0.60824094,3486.9,3486.7,0.229991]
[1641440029974,1.86066518,3486.9,3486.6,1.21903455]
[1641440030775,1.86066518,3486.9,3486.7,0.229991]
[1641440031176,1.86066518,3486.9,3486.6,1.35142855]
[1641440031378,0.60824094,3486.9,3486.6,1.35142855]
[1641440031677,0.60824094,3486.9,3486.6,1.21903455]
[1641440032581,1.25242424,3487.0,3486.6,1.21903455]
[1641440032779,0.60824094,3487.1,3486.7,0.132394]
[1641440033179,1.5,3486.8,3486.7,0.132394]
[1641440033379,1.5,3486.8,3486.7,0.362385]
[1641440033980,0.60824094,3487.1,3486.7,0.362385]
[1641440034681,0.60824094,3487.1,3486.7,0.132394]
[1641440034882,6.76200424,3487.2,3486.7,0.132394]
[1641440035684,0.6082837,3487.1,3486.7,0.132394]
[1641440038089,2.1082837,3487.1,3486.7,0.132394]
[1641440038888,0.6082837,3487.1,3486.7,0.132394]
[1641440039688,0.6082837,3487.1,3487.0,14.29479]
[1641440039889,1.25242424,3487.3,3487.0,14.657175]
[1641440040090,1.25242424,3487.6,3487.0,14.657175]
[1641440042095,1.25242424,3487.6,3487.0,2.367175]
[1641440042696,1.5,3487.8,3487.0,2.367175]
[1641440043701,1.25201058,3487.6,3487.0,2.367175]
[1641440044096,1.5,3487.5,3487.0,2.367175]
[1641440044397,1.25201058,3487.6,3487.0,2.367175]
[1641440045299,0.60820853,3487.4,3487.0,2.367175]
[1641440046498,1.5,3487.1,3487.0,2.367175]
[1641440047303,0.60820853,3487.6,3487.0,14.657175]
[1641440047504,2.75201058,3487.7,3487.0,14.657175]
[1641440047902,2.75201058,3487.7,3487.0,2.367175]
[1641440048505,0.60816147,3487.6,3487.0,2.367175]
[1641440049104,0.60816147,3487.6,3487.0,14.657175]
[1641440050005,0.60816147,3487.7,3487.0,14.657175]
[1641440051508,1.25201058,3487.8,3487.0,14.657175]
[1641440051709,3.84751983,3488.6,3487.7,2.00479]
[1641440051907,3.84751983,3488.6,3487.8,12.422394]
[1641440052108,1.25338204,3487.9,3487.8,12.422394]
[1641440052308,1.25338204,3487.9,3487.8,12.652385]
[1641440052508,8.204e-05,3487.9,3487.8,12.652385]
[1641440053615,1.5,3488.2,3487.8,12.652385]
[1641440054016,2.00479,3488.3,3487.8,12.652385]
[1641440058119,1.5,3488.2,3487.8,0.362385]
[1641440058320,2.00479,3488.3,3487.8,0.132394]
[1641440058520,0.5,3488.2,3487.8,0.132394]
[1641440058921,2.00479,3488.3,3487.9,1.0]
[1641440059221,2.00479,3488.3,3488.0,0.132394]
[1641440059420,2.00479,3488.3,3488.1,12.29]
[1641440059821,1.87801587,3488.4,3488.1,12.29]
[1641440060020,1.87801587,3488.4,3488.3,1.0]
[1641440060220,1.87801587,3488.4,3488.3,12.519991]
[1641440060425,2.34751983,3488.6,3488.3,12.519991]
[1641440060623,3.13002644,3488.9,3488.6,12.29]
[1641440060822,3.13002644,3488.9,3488.6,13.79]
[1641440061023,6.7396579,3489.2,3488.7,0.132394]
[1641440061227,6.7396579,3489.2,3488.8,12.29]
[1641440061430,6.7396579,3489.2,3488.9,0.95866136]
[1641440061924,2.35864365,3489.2,3488.9,0.95866136]
[1641440062323,2.35864365,3489.2,3488.0,0.96891955]
[1641440062324,1.43313699,3489.0,3488.0,0.96891955]
[1641440062724,1.5,3489.1,3488.0,0.96891955]
[1641440063123,1.5,3488.7,3488.0,0.96891955]
[1641440063323,0.5,3488.3,3488.0,0.96891955]
[1641440063727,12.00478999,3489.3,3487.7,1.96891955]
[1641440063728,0.5,3488.1,3487.7,1.96891955]
[1641440063923,0.5,3487.9,3487.7,1.96891955]
[1641440064129,2.00479,3488.1,3487.7,1.96891955]
[1641440064726,0.5,3488.0,3487.7,1.96891955]
[1641440064925,2.50479,3488.1,3487.7,1.96891955]
[1641440065126,2.50479,3488.1,3487.7,1.0]
[1641440065326,0.5,3487.8,3486.9,0.96891955]
[1641440065627,0.5,3487.6,3486.9,2.30305825]
[1641440065925,2.50479,3487.0,3486.9,0.96891955]
[1641440066125,2.00479,3487.0,3486.9,0.96891955]
[1641440066327,2.00479,3487.0,3486.7,2.26458243]
[1641440066527,3.26039144,3487.0,3486.7,0.96891955]
[1641440067027,3.26039144,3487.0,3486.8,1.0]
[1641440067228,3.26039144,3487.0,3486.7,0.96891955]
[1641440068031,2.00479,3487.0,3486.7,0.96891955]
[1641440068329,1.00479,3487.0,3486.7,0.96891955]
[1641440068531,1.00479,3487.0,3486.7,1.10205966]
[1641440068932,1.00479,3487.0,3486.9,1.0]
[1641440069129,1.00479,3487.0,3486.9,1.132394]
[1641440071536,1.00479,3487.0,3486.9,2.10131355]
[1641440071734,1.00479,3487.0,3486.9,1.10131355]
[1641440071936,1.00479,3487.0,3486.9,0.96891955]
[1641440072536,1.00479,3487.0,3486.8,0.96891955]
[1641440072935,1.00479,3487.0,3486.9,0.229991]
[1641440073338,0.00479,3487.0,3486.8,0.96891955]
[1641440073737,0.00479,3487.0,3486.9,0.229991]
[1641440074942,0.54450368,3487.0,3486.7,3.07097921]
[1641440075140,0.53971368,3487.0,3486.9,14.79]
[1641440075340,2.35490295,3487.9,3486.9,14.79]
[1641440075545,2.35490295,3487.9,3487.8,1.0]
[1641440076646,0.8109447,3488.1,3487.8,1.0]
[1641440077142,0.8109447,3488.1,3487.9,1.2283147]
[1641440077843,1.88435063,3488.1,3488.0,0.229991]
[1641440078044,1.88435063,3488.1,3488.0,1.229991]
[1641440078342,1.88435063,3488.1,3487.9,1.2283147]
[1641440079142,4.35969295,3488.3,3487.9,1.2283147]
[1641440079347,4.35969295,3488.3,3487.7,0.28215566]
[1641440080044,2.00479,3488.3,3487.7,0.41454966]
[1641440080244,1.88244566,3488.2,3487.7,0.41454966]
[1641440080444,1.88244566,3488.2,3487.7,1.09149088]
[1641440081947,2.00479,3488.3,3487.7,1.09149088]
[1641440082544,2.00479,3488.3,3488.0,0.28215566]
[1641440082744,2.00479,3488.3,3488.1,0.51214666]
[1641440082948,1.88244566,3488.4,3488.1,0.28215566]
[1641440083148,1.88244566,3488.4,3488.1,0.41454966]
[1641440083347,1.88244566,3488.5,3488.3,0.28215566]
[1641440083546,1.88244566,3488.5,3488.4,0.229991]
[1641440083746,1.88244566,3488.5,3488.4,1.04472524]
[1641440083946,1.88244566,3488.5,3488.4,1.17711924]
[1641440084146,2.69339036,3488.7,3488.4,1.17711924]
[1641440084347,1.88244566,3488.7,3488.4,1.17711924]
[1641440084548,1.88244566,3488.7,3488.6,0.28215566]
[1641440084745,1.88244566,3488.7,3488.6,0.51214666]
[1641440085547,1.88244566,3488.8,3488.6,0.51214666]
[1641440086347,1.88244566,3488.8,3488.7,0.4171]
[1641440088351,1.88244566,3488.9,3488.7,0.647091]
[1641440088751,1.88244566,3488.9,3488.8,0.28215566]
[1641440089352,1.88244566,3488.9,3488.8,0.41454966]
[1641440089552,1.88244566,3489.1,3488.8,0.41454966]
[1641440090052,1.88244566,3489.1,3488.9,0.229991]
[1641440090253,1.88244566,3489.1,3489.0,1.09602197]
[1641440090853,1.88244566,3489.1,3489.0,0.81386631]
[1641440091856,1.88244566,3489.1,3489.0,1.09602197]
[1641440092056,1.88244566,3489.1,3489.0,1.22841597]
[1641440092658,1.88244566,3489.2,3489.0,1.22841597]
[1641440092858,1.88244566,3489.2,3489.1,0.229991]
[1641440093260,1.88244566,3489.2,3489.0,1.22841597]
[1641440093860,1.88244566,3489.2,3489.1,0.229991]
[1641440094262,3.88723566,3489.3,3489.1,0.229991]
[1641440094461,3.88723566,3489.3,3489.0,0.11442754]
[1641440094863,3.88723566,3489.3,3489.0,0.3965832]
[1641440095062,1.88244566,3489.2,3489.0,0.3965832]
[1641440095463,1.88244566,3489.2,3489.1,1.937854]
[1641440095861,1.88244566,3489.2,3489.1,1.246354]
[1641440096061,1.88244566,3489.2,3488.8,1.0]
[1641440096062,4.18374732,3489.2,3488.8,1.0]
[1641440096262,2.75059184,3489.2,3489.1,0.28215566]
[1641440096461,2.52060084,3489.2,3489.0,0.28215566]
[1641440096862,0.229991,3489.1,3489.0,0.28215566]
[1641440097063,2.52060084,3489.2,3489.0,0.28215566]
[1641440097365,1.38820684,3489.2,3489.0,0.28215566]
[1641440097563,0.50576118,3489.1,3489.0,0.28215566]
[1641440097763,1.38820684,3489.1,3489.0,0.28215566]
[1641440098363,1.38820684,3489.1,3489.0,12.29]
[1641440098763,1.38820684,3489.1,3489.0,0.28215566]
[1641440098964,1.38820684,3489.1,3488.9,0.132394]
[1641440099167,0.50576118,3489.1,3488.9,0.132394]
[1641440099365,0.50576118,3489.2,3488.9,0.132394]
[1641440099565,0.50576118,3489.2,3488.8,1.0]
[1641440099966,0.132394,3489.1,3488.8,1.0]
[1641440100164,0.229991,3489.0,3488.8,1.0]
[1641440100566,0.132394,3489.0,3488.8,1.0]
[1641440100967,1.44783534,3488.9,3488.7,0.4171]
[1641440101168,0.132394,3488.8,3487.6,0.96891955]
[1641440101368,1.21784434,3488.3,3487.6,0.96891955]
[1641440101866,0.132394,3488.2,3487.7,1.54697339]
[1641440102067,2.00479,3487.9,3487.7,1.54697339]
[1641440102269,1.00479,3487.9,3487.7,1.54697339]
[1641440102471,0.229991,3487.8,3487.7,1.54697339]
[1641440102669,1.00479,3487.9,3487.7,1.54697339]
[1641440103470,1.00479,3487.9,3487.8,0.132394]
[1641440103873,2.00479,3488.3,3487.8,12.422394]
[1641440104072,2.00479,3488.3,3488.2,0.28215566]
[1641440104871,2.00479,3488.3,3488.2,1.63276442]
[1641440106072,0.132394,3488.6,3488.2,1.63276442]
[1641440106272,0.132394,3488.6,3488.4,0.28215566]
[1641440106973,0.229991,3488.5,3488.4,0.28215566]
[1641440107174,2.00479,3488.9,3488.4,0.28215566]
[1641440107472,2.00479,3488.9,3488.8,0.28215566]
[1641440107872,2.00479,3488.9,3488.2,13.64060876]
[1641440108072,2.00479,3488.9,3488.8,0.28215566]
[1641440108273,2.00479,3488.9,3488.3,0.132394]
[1641440108475,2.137184,3488.9,3488.4,0.28215566]
[1641440108676,2.137184,3488.9,3488.6,0.8912]
[1641440109376,2.00479,3488.9,3488.6,0.8912]
[1641440109576,2.137184,3488.9,3488.6,0.8912]
[1641440110578,2.00479,3488.9,3488.6,0.8912]
[1641440110976,2.00479,3488.9,3488.8,0.28215566]
[1641440111176,2.00479,3488.9,3488.6,0.8912]
[1641440112378,2.00479,3488.9,3488.8,0.28215566]
[1641440113177,2.00479,3488.9,3488.8,1.07425566]
[1641440113378,2.00479,3488.9,3488.8,0.7921]
[1641440115681,2.00479,3488.9,3488.8,1.07425566]
[1641440115881,2.00479,3488.9,3488.8,0.7921]
[1641440116083,2.00479,3488.9,3488.8,0.28215566]
[1641440116281,2.234781,3488.9,3488.8,0.28215566]
[1641440116483,2.00479,3488.9,3488.8,0.28215566]
[1641440116884,2.00479,3488.9,3488.6,0.8912]
[1641440117085,0.132394,3488.8,3488.6,0.8912]
[1641440117387,0.229991,3488.7,3488.6,0.8912]
[1641440118586,0.229991,3488.7,3488.6,0.0001]
[1641440118987,0.229991,3488.7,3488.2,2.00479]
[1641440119191,0.132394,3488.6,3488.2,2.00479]
[1641440119990,0.132394,3488.6,3488.2,2.28694566]
[1641440120191,0.132394,3488.6,3488.2,2.00479]
[1641440120397,0.132394,3488.6,3488.5,0.28215566]
[1641440120590,0.362385,3488.6,3488.5,0.28215566]
[1641440121290,2.00479,3488.9,3488.5,0.28215566]
[1641440121491,2.00479,3488.9,3488.8,0.28215566]
[1641440121891,2.00479,3488.9,3488.5,0.28215566]
[1641440122090,2.00479,3488.9,3488.2,2.00479]
[1641440122290,0.132394,3488.8,3488.4,0.28215566]
[1641440122490,0.132394,3488.8,3488.2,2.00479]
[1641440122691,0.132394,3488.8,3488.2,2.137184]
[1641440122890,0.132394,3488.8,3488.5,0.28215566]
[1641440123291,0.229991,3488.7,3488.5,0.28215566]
[1641440124493,0.229991,3488.7,3488.2,2.137184]
[1641440124693,0.229991,3488.7,3488.5,0.28215566]
[1641440124894,0.229991,3488.7,3488.2,2.00479]
[1641440124895,0.132394,3488.6,3488.2,2.00479]
[1641440125596,1.43327873,3488.5,3488.2,2.00479]
[1641440125794,0.362385,3488.4,3488.2,2.00479]
[1641440125994,0.362385,3488.4,3488.3,0.28215566]
[1641440126394,0.362385,3488.4,3488.2,2.00479]
[1641440126595,0.362385,3488.4,3488.2,2.28694566]
[1641440127395,0.132394,3488.4,3488.2,2.28694566]
[1641440128199,0.229991,3488.3,3488.2,2.28694566]
[1641440128598,0.132394,3488.4,3488.2,2.28694566]
[1641440130201,0.53341241,3488.3,3488.2,2.28694566]
[1641440131700,0.53341241,3488.3,3488.2,3.78694566]
[1641440131901,0.53341241,3488.3,3488.2,2.28694566]
[1641440132103,0.53341241,3488.3,3488.2,5.36390097]
[1641440132504,0.53341241,3488.3,3488.2,3.86390097]
[1641440133116,0.53341241,3488.3,3488.2,2.89498142]
[1641440133307,1.25993149,3488.4,3488.2,4.18959669]
[1641440134506,1.25993149,3488.4,3488.2,4.32199069]
[1641440134708,0.53341241,3488.8,3488.2,4.32199069]
[1641440134906,3.8829004,3488.9,3488.6,0.28215566]
[1641440135107,1.8781104,3488.8,3488.7,0.99251889]
[1641440135509,1.8781104,3488.8,3488.7,1.12491289]
[1641440136507,1.8781104,3488.8,3488.7,2.62491289]
[1641440137715,2.00479,3488.9,3488.7,2.62491289]
[1641440137916,2.00479,3488.9,3488.7,1.12491289]
[1641440138118,1.8781104,3489.0,3488.8,0.28215566]
[1641440138319,1.8781104,3489.0,3488.8,2.28694566]
[1641440138818,1.8781104,3489.1,3488.8,2.41933966]
[1641440139117,1.8781104,3489.1,3488.8,2.137184]
[1641440139319,1.8781104,3489.1,3489.0,0.28215566]
[1641440140618,1.8781104,3489.1,3489.0,0.41454966]
[1641440145323,2.1081014,3489.1,3489.0,0.28215566]
[1641440145524,0.229991,3489.1,3489.0,0.28215566]
[1641440146329,2.0105044,3489.2,3489.0,0.28215566]
[1641440146526,1.8781104,3489.1,3489.0,1.07155566]
[1641440148029,1.8781104,3489.2,3489.0,1.07155566]
[1641440148631,1.8781104,3489.2,3489.0,1.20394966]
[1641440150331,1.8781104,3489.4,3489.0,13.49394966]
[1641440150530,1.8781104,3489.4,3489.3,0.28215566]
[1641440150731,2.1081014,3489.4,3489.3,1.47469094]
[1641440150932,1.8781104,3489.4,3489.3,1.47469094]
[1641440153033,0.54188051,3489.5,3489.3,1.47469094]
[1641440153834,0.54188051,3489.5,3489.4,0.132394]
[1641440155535,0.77187151,3489.5,3489.4,0.132394]
[1641440155735,0.54188051,3489.5,3489.4,0.132394]
[1641440156339,0.54188051,3489.5,3489.3,1.47469094]
[1641440156636,0.54188051,3489.5,3489.3,3.47948094]
[1641440156937,0.77187151,3489.5,3489.3,3.47948094]
[1641440157337,0.54188051,3489.5,3489.3,3.47948094]
[1641440157537,2.55238491,3489.7,3489.3,3.47948094]
[1641440157737,2.55238491,3489.7,3489.3,3.19732528]
[1641440157938,2.55238491,3489.7,3489.6,0.28215566]
[1641440158138,2.78237591,3489.7,3489.5,0.28215566]
[1641440158337,2.78237591,3489.7,3489.3,3.19732528]
[1641440158539,0.54188051,3489.6,3489.3,3.19732528]
[1641440158738,0.132394,3489.5,3489.3,3.19732528]
[1641440158940,0.229991,3489.4,3489.3,3.19732528]
[1641440159140,0.132394,3489.5,3489.3,3.19732528]
[1641440159341,0.132394,3489.5,3489.4,0.28215566]
[1641440160339,0.362385,3489.5,3489.4,0.28215566]
[1641440160539,0.132394,3489.5,3489.4,0.28215566]
[1641440161040,0.67427451,3489.5,3489.4,0.28215566]
[1641440161639,0.67427451,3489.5,3489.3,3.19732528]
[1641440161839,1.89211885,3489.5,3489.3,3.19732528]
[1641440162039,0.67427451,3489.5,3489.3,3.19732528]
[1641440162242,1.44783534,3489.4,3489.3,3.19732528]
[1641440162439,1.66289594,3489.4,3489.3,1.19253528]
[1641440162941,1.66289594,3489.4,3489.3,1.47469094]
[1641440163142,1.66289594,3489.4,3489.3,1.19253528]
[1641440163341,0.229991,3489.4,3489.3,1.19253528]
[1641440163542,0.229991,3489.4,3488.8,2.137184]
[1641440163741,0.229991,3489.4,3489.3,0.28215566]
[1641440164743,0.229991,3489.4,3489.3,1.51032177]
[1641440164946,0.229991,3489.4,3489.3,1.22816611]
[1641440165843,0.229991,3489.4,3489.3,1.51032177]
[1641440166245,0.54188051,3489.5,3489.3,1.51032177]
[1641440166745,0.54188051,3489.5,3489.3,1.22816611]
[1641440166947,0.54188051,3489.5,3489.4,0.28215566]
[1641440167346,0.77187151,3489.5,3489.4,0.28215566]
[1641440167548,0.54188051,3489.5,3489.4,0.28215566]
[1641440168347,0.77187151,3489.5,3489.4,0.28215566]
[1641440169749,0.54188051,3489.5,3489.4,0.28215566]
[1641440170350,0.54188051,3489.5,3489.3,1.22816611]
[1641440170951,0.54188051,3489.5,3489.3,1.51032177]
[1641440171151,0.54188051,3489.5,3489.3,2.48315003]
[1641440171851,0.54188051,3489.5,3489.3,2.20099437]
[1641440172053,0.54188051,3489.5,3489.4,0.28215566]
[1641440172854,0.54188051,3489.6,3489.4,0.28215566]
[1641440174255,0.54188051,3489.6,3489.5,0.28215566]
[1641440174653,0.54188051,3489.6,3489.5,0.41454966]
[1641440175055,0.54188051,3489.7,3489.5,0.41454966]
[1641440175254,0.77187151,3489.7,3489.5,0.41454966]
[1641440175954,0.54188051,3489.7,3489.5,0.28215566]
[1641440176155,0.229991,3489.6,3489.5,0.28215566]
[1641440176356,2.13626839,3489.6,3489.5,0.28215566]
[1641440176554,2.13626839,3489.6,3489.3,1.22816611]
[1641440176555,1.90627739,3489.6,3489.3,1.22816611]
[1641440176756,1.90627739,3489.6,3489.5,0.28215566]
[1641440177455,2.4481579,3489.6,3489.5,0.28215566]
[1641440179757,1.90627739,3489.6,3489.5,0.28215566]
[1641440180759,2.4481579,3489.7,3489.5,0.28215566]
[1641440182159,2.4481579,3489.7,3489.6,0.28215566]
[1641440182560,2.4481579,3489.7,3489.6,0.41454966]
[1641440183563,0.54188051,3489.7,3489.6,0.41454966]
[1641440184462,0.54188051,3489.7,3489.6,0.132394]
[1641440184663,0.54188051,3489.7,3489.6,0.41454966]
[1641440185467,2.00479,3489.8,3489.7,0.45811949]
[1641440188878,1.43266681,3490.0,3489.7,0.45811949]
[1641440189278,0.229991,3489.9,3489.7,0.45811949]
[1641440189478,1.43266681,3490.0,3489.7,0.45811949]
[1641440190179,0.229991,3489.9,3489.7,0.45811949]
[1641440190378,3.54962173,3490.1,3489.7,0.45811949]
[1641440190578,2.46417139,3490.1,3489.7,0.45811949]
[1641440190779,3.68201573,3490.1,3489.7,0.45811949]
[1641440190979,2.46417139,3490.1,3489.7,0.45811949]
[1641440191381,1.77573834,3490.1,3489.7,0.45811949]
[1641440191580,3.20840515,3490.1,3489.7,0.45811949]
[1641440191983,1.99056081,3490.1,3489.7,0.45811949]
[1641440192180,3.20840515,3490.1,3489.7,0.45811949]
[1641440192382,1.99056081,3490.1,3489.7,0.45811949]
[1641440193282,1.21784434,3489.9,3489.3,1.22816611]
[1641440193482,2.65072054,3489.6,3488.3,1.93357188]
[1641440194083,0.132394,3489.5,3489.1,0.28215566]
[1641440194383,0.132394,3489.5,3489.2,1.02001886]
[1641440194585,0.076609,3489.4,3489.2,1.02001886]
[1641440194983,0.132394,3489.4,3489.2,1.25000986]
[1641440195384,1.213793,3489.6,3489.2,1.02001886]
[1641440195785,1.213793,3489.6,3489.3,0.28215566]
[1641440195986,1.213793,3489.6,3489.5,0.28215566]
[1641440196187,1.213793,3489.6,3489.5,0.41454966]
[1641440196386,1.90627739,3489.8,3489.5,0.41454966]
[1641440196585,1.90627739,3489.8,3489.7,0.28215566]
[1641440196786,1.90627739,3489.8,3489.7,1.23544666]
[1641440196985,1.90627739,3489.9,3489.7,1.23544666]
[1641440197187,1.90627739,3489.9,3489.7,2.60386712]
[1641440198187,3.3389442,3490.1,3489.7,2.60386712]
[1641440198388,3.3389442,3490.1,3489.7,2.37387612]
[1641440200193,3.3389442,3490.1,3489.8,0.132394]
[1641440200392,3.3389442,3490.1,3489.9,2.120291]
[1641440203097,3.3389442,3490.1,3489.9,1.8903]
[1641440204097,3.3389442,3490.1,3490.0,0.229991]
[1641440204300,3.3389442,3490.1,3489.9,1.8903]
[1641440205099,3.3389442,3490.1,3490.0,0.229991]
[1641440205499,1.90627739,3490.1,3490.0,0.229991]
[1641440205700,1.90627739,3490.1,3489.9,1.8903]
[1641440205902,1.90627739,3490.1,3490.0,0.229991]
[1641440206500,1.43266681,3490.1,3490.0,0.229991]
[1641440207902,1.43266681,3490.1,3489.9,1.8903]
[1641440208603,1.43266681,3490.1,3489.9,2.120291]
[1641440208809,3.3389442,3490.1,3489.9,1.8903]
[1641440209503,3.3389442,3490.1,3490.0,0.229991]
[1641440209706,3.3389442,3490.1,3489.9,0.25693343]
[1641440210304,3.5689352,3490.1,3489.9,0.25693343]
[1641440210507,3.3389442,3490.1,3489.9,0.25693343]
[1641440211308,3.3389442,3490.1,3489.9,0.33354243]
[1641440211707,3.3389442,3490.1,3489.9,0.25693343]
[1641440212207,3.3389442,3490.1,3489.9,0.33354243]
[1641440212710,3.8164271,3490.1,3489.9,0.33354243]
[1641440214609,3.8164271,3490.1,3489.9,0.25693343]
[1641440215412,0.229991,3490.0,3489.9,0.25693343]
[1641440215611,3.8164271,3490.1,3489.9,0.33354243]
[1641440216413,1.90887387,3490.0,3489.9,0.33354243]
[1641440218215,3.1398706,3490.5,3489.9,12.62354243]
[1641440218416,62.9648,3493.0,3490.5,12.29]
[1641440218714,28.25362276,3494.8,3491.4,0.28215566]
[1641440218715,20.95693481,3493.6,3491.4,0.28215566]
[1641440218915,5.467,3491.5,3491.4,0.49115866]
[1641440219116,4.77904413,3491.6,3491.4,0.49115866]
[1641440219316,4.77904413,3491.6,3491.4,1.44035789]
[1641440219515,4.77904413,3491.6,3491.4,3.44514789]
[1641440219916,1.21784434,3491.5,3491.4,1.08159323]
[1641440220115,4.77904413,3491.6,3490.0,30.862]
[1641440220317,1.21784434,3491.5,3491.0,1.18870397]
[1641440220516,31.8377,3492.0,3490.0,0.28215566]
[1641440220717,4.582885,3491.4,3490.0,0.28215566]
[1641440220916,4.583476,3491.5,3491.4,0.60750065]
[1641440221116,0.229991,3491.5,3491.4,0.60750065]
[1641440221517,8.822194,3491.5,3491.4,0.00010065]
[1641440221716,8.822194,3491.5,3491.3,1.29461527]
[1641440222118,8.822194,3491.5,3491.1,1.61486592]
[1641440222319,8.822194,3491.5,3490.8,0.9716688]
[1641440223317,8.822194,3491.5,3490.9,1.29533119]
[1641440223517,2.00479,3491.1,3490.9,1.29533119]
[1641440223720,0.229991,3491.0,3490.9,1.29533119]
[1641440224120,4.81327,3491.0,3490.9,1.29533119]
[1641440224324,4.81327,3491.0,3490.5,0.9716688]
[1641440224325,5.48877,3491.0,3490.5,0.9716688]
[1641440224522,1.21784434,3490.6,3490.0,1.61486592]
[1641440224721,2.65081088,3490.1,3489.0,4.04888817]
[1641440224921,1.21784434,3489.8,3489.0,4.04888817]
[1641440225220,4.585315,3489.7,3489.3,0.28215566]
[1641440225423,4.585315,3489.7,3489.0,4.04888817]
[1641440225620,2.00479,3489.4,3489.0,4.04888817]
[1641440226324,2.00479,3489.4,3488.9,0.132394]
[1641440226521,2.59999,3489.4,3488.9,0.132394]
[1641440227830,2.59999,3489.4,3489.3,0.28215566]
[1641440228027,2.234781,3489.4,3489.3,0.28215566]
[1641440228324,2.00479,3489.4,3489.2,0.132394]
[1641440228724,2.00479,3489.4,3489.2,1.29401313]
[1641440228925,0.229991,3489.3,3489.2,1.29401313]
[1641440229323,0.229991,3489.3,3489.2,1.57616879]
[1641440229523,0.229991,3489.3,3489.2,1.16161913]
[1641440229723,0.229991,3489.3,3489.2,1.44377479]
[1641440231125,0.229991,3489.3,3489.2,1.16161913]
[1641440231425,0.229991,3489.3,3488.7,1.94420683]
[1641440232230,1.21784434,3488.9,3488.2,3.23963609]
[1641440232429,1.21784434,3488.4,3488.0,3.609e-05]
[1641440232628,1.21784434,3488.2,3488.0,3.609e-05]
[1641440232826,1.66363548,3488.1,3487.8,7.46214747]
[1641440233027,1.21784434,3487.9,3487.5,4.45366765]
[1641440233230,3.242792,3488.1,3487.5,3.95336765]
[1641440233427,1.78984434,3488.2,3487.5,3.95336765]
[1641440233428,4.58755,3487.8,3487.5,3.88836765]
[1641440233628,4.00958,3487.6,3487.5,3.80436765]
[1641440233830,4.00958,3487.6,3487.5,2.53376765]
[1641440234230,8.596934,3487.6,3487.5,2.53376765]
[1641440234639,8.596934,3487.6,3487.5,2.18836765]
[1641440234640,8.826925,3487.6,3487.5,2.18836765]
[1641440234839,8.826925,3487.6,3486.8,0.8495101]
[1641440235539,8.826925,3487.6,3487.3,1.62070759]
[1641440236841,8.826925,3487.6,3487.2,1.62070759]
[1641440237842,8.826925,3487.6,3487.2,1.90286325]
[1641440238245,8.826925,3487.6,3487.2,2.03525725]
[1641440238643,8.826925,3487.6,3487.4,1.62070759]
[1641440239444,8.826925,3487.6,3487.3,1.62070759]
[1641440241642,8.826925,3487.6,3487.4,1.15350799]
[1641440243044,0.5096901,3487.5,3487.4,1.15350799]
[1641440243346,5.0975691,3487.5,3487.4,1.15350799]
[1641440243946,5.0975691,3487.5,3487.2,1.62070759]
[1641440244245,0.229991,3487.4,3486.7,1.20830793]
[1641440244446,0.229991,3487.4,3486.4,3.24115721]
[1641440244646,4.588405,3487.3,3486.5,0.28215566]
[1641440244846,4.588405,3487.3,3486.5,3.24115721]
[1641440245246,4.588603,3487.5,3486.5,3.24115721]
[1641440245546,4.00958,3486.6,3486.5,3.52331287]
[1641440245747,4.239571,3486.6,3486.5,3.52331287]
[1641440245949,8.828634,3486.6,3486.5,0.35876466]
[1641440246147,8.598643,3486.6,3486.5,0.28215566]
[1641440246347,4.00958,3486.6,3486.5,0.28215566]
[1641440246647,4.239571,3486.6,3486.5,0.28215566]
[1641440247849,4.00958,3486.6,3486.5,0.28215566]
[1641440248451,4.00958,3486.6,3486.5,1.78215566]
[1641440248648,1.27816672,3487.3,3486.5,1.85876466]
[1641440248852,1.27816672,3487.3,3487.2,0.28215566]
[1641440249451,1.27816672,3487.3,3487.2,0.35876466]
[1641440250554,1.50815772,3487.3,3487.1,0.132394]
[1641440250754,0.229991,3487.3,3487.2,2.87574742]
[1641440250955,0.229991,3487.3,3487.2,1.00663393]
[1641440251155,2.00479,3487.7,3487.2,0.28215566]
[1641440251353,2.00479,3487.7,3487.3,0.28215566]
[1641440251553,2.00479,3487.7,3486.9,2.00479]
[1641440251753,1.43385621,3487.5,3486.9,2.00479]
[1641440251954,2.71202293,3487.5,3487.4,0.28215566]
[1641440252254,1.50815772,3487.5,3487.4,5.566e-05]
[1641440252454,6.09603672,3487.5,3487.4,5.566e-05]
[1641440252654,6.09603672,3487.5,3486.9,2.00479]
[1641440252854,6.09603672,3487.5,3487.3,1.29723898]
[1641440253457,5.86604572,3487.5,3487.3,1.37384798]
[1641440253654,6.09603672,3487.5,3487.3,1.37384798]
[1641440253853,1.27816672,3487.6,3487.4,1.29723898]
[1641440254453,1.27816672,3487.6,3487.5,0.076609]
[1641440254653,1.50815772,3487.6,3487.4,1.29723898]
[1641440254854,1.27816672,3487.6,3487.4,1.29723898]
[1641440255053,1.27816672,3487.6,3487.5,0.132394]
[1641440255254,0.81073784,3488.1,3487.5,1.632394]
[1641440255453,0.81073784,3488.1,3488.0,1.5]
[1641440255655,0.81073784,3488.1,3488.0,5.718583]
[1641440256058,3.784e-05,3488.1,3488.0,18.008583]
[1641440256255,2.39161375,3488.5,3488.0,18.93141352]
[1641440256454,2.39161375,3488.5,3488.4,1.5]
[1641440256653,2.39161375,3488.5,3488.4,1.709003]
[1641440256853,2.39161375,3488.5,3488.4,0.209003]